bitfinex-derivatives/quotes_SOLF0:USTF0_20220101
["timestamp","ask_amount","ask_price","bid_price","bid_amount"]
[1641055037975,9.74313488,174.39,174.22,11.68861619]
[1641055038373,3.0,174.37,174.22,11.68861619]
[1641055038772,9.74313488,174.39,174.31,27.66479]
[1641055038973,2.46092165,174.41,174.31,27.66479]
[1641055040179,3.0,174.4,174.32,1.40028825]
[1641055040374,35.06605914,174.41,174.32,1.40028825]
[1641055040775,35.06605914,174.41,174.38,27.66479]
[1641055041176,2.46092165,174.41,174.38,27.66479]
[1641055041875,72.03281848,174.49,174.39,1.40028825]
[1641055041876,2.46092165,174.46,174.39,1.40028825]
[1641055042476,2.46092165,174.46,174.4,5.72786895]
[1641055042677,2.46092165,174.46,174.45,27.66479]
[1641055043478,32.60513749,174.51,174.45,27.66479]
[1641055044779,32.60513749,174.51,174.45,55.32958]
[1641055046778,32.60513749,174.51,174.48,27.66479]
[1641055049080,27.66479,174.57,174.48,27.66479]
[1641055049283,3.0,174.53,174.48,27.66479]
[1641055049482,3.25652061,174.56,174.48,27.66479]
[1641055049682,3.0,174.53,174.48,27.66479]
[1641055050080,3.25652061,174.56,174.48,27.66479]
[1641055050282,3.0,174.53,174.48,27.66479]
[1641055050482,3.0,174.53,174.48,33.71079]
[1641055050682,3.0,174.5,174.48,33.71079]
[1641055051484,3.0,174.49,174.48,6.046]
[1641055051684,3.0,174.49,174.42,6.669]
[1641055051884,3.0,174.45,174.42,6.669]
[1641055053286,3.0,174.43,174.42,6.669]
[1641055054989,3.0,174.43,174.35,27.66479]
[1641055055190,3.0,174.44,174.35,27.66479]
[1641055055389,3.0,174.39,174.35,27.66479]
[1641055055791,3.0,174.36,174.35,27.66479]
[1641055056789,3.0,174.36,174.33,27.66479]
[1641055058589,34.954,174.44,174.33,27.66479]
[1641055058791,27.66479,174.41,174.33,27.66479]
[1641055059193,30.66479,174.41,174.33,27.66479]
[1641055059391,3.0,174.34,174.33,27.66479]
[1641055059591,3.0,174.35,174.33,27.66479]
[1641055059794,27.66479,174.41,174.33,27.66479]
[1641055059994,3.0,174.34,174.29,27.66479]
[1641055060198,3.0,174.3,174.29,27.66479]
[1641055060396,3.0,174.3,174.2,31.8366]
[1641055060597,3.0,174.28,174.19,22.93446477]
[1641055060797,27.66479,174.36,174.26,27.66479]
[1641055061096,3.0,174.31,174.26,27.66479]
[1641055061297,27.66479,174.36,174.26,27.66479]
[1641055061497,3.0,174.31,174.26,27.66479]
[1641055061698,27.66479,174.36,174.26,27.66479]
[1641055061897,3.0,174.33,174.26,27.66479]
[1641055062599,3.0,174.3,174.26,27.66479]
[1641055062798,3.0,174.3,174.27,8.626466]
[1641055063400,3.0,174.3,174.27,1.61191286]
[1641055065003,9.28215998,174.35,174.27,1.61191286]
[1641055065201,3.0,174.3,174.27,1.61191286]
[1641055065407,12.28215998,174.35,174.27,1.61191286]
[1641055066003,3.0,174.29,174.27,1.61191286]
[1641055066406,9.28215998,174.35,174.27,1.61191286]
[1641055066605,3.0,174.29,174.27,1.61191286]
[1641055067005,2.46255799,174.34,174.27,1.61191286]
[1641055067205,12.22379188,174.33,174.27,1.61191286]
[1641055067805,3.0,174.29,174.27,1.61191286]
[1641055068605,12.22379188,174.33,174.27,1.61191286]
[1641055068806,3.0,174.32,174.27,1.61191286]
[1641055069008,3.0,174.3,174.28,12.22379188]
[1641055069407,3.0,174.33,174.28,12.22379188]
[1641055069808,3.0,174.33,174.27,20.85038682]
[1641055070007,39.88858188,174.36,174.27,20.85038682]
[1641055070210,3.0,174.3,174.27,20.85038682]
[1641055070407,3.0,174.33,174.28,12.22379188]
[1641055070810,39.88858188,174.36,174.28,12.22379188]
[1641055071009,3.0,174.31,174.28,12.22379188]
[1641055071209,3.0,174.33,174.28,12.22379188]
[1641055071609,3.0,174.34,174.28,12.22379188]
[1641055071809,12.22379188,174.36,174.28,12.22379188]
[1641055072009,3.0,174.34,174.28,12.22379188]
[1641055072209,2.46247081,174.33,174.28,12.22379188]
[1641055072912,5.46247081,174.33,174.29,27.66479]
[1641055073313,3.0,174.33,174.29,39.88858188]
[1641055073914,2.46247081,174.36,174.29,39.88858188]
[1641055074113,3.0,174.33,174.29,39.88858188]
[1641055074514,42.90329188,174.37,174.29,39.88858188]
[1641055074714,42.90329188,174.37,174.29,27.66479]
[1641055074715,3.0,174.32,174.29,27.66479]
[1641055075317,3.0,174.3,174.29,27.66479]
[1641055075814,31.976,174.36,174.29,27.66479]
[1641055076014,3.0,174.3,174.29,27.66479]
[1641055076414,3.0,174.38,174.29,27.66479]
[1641055076615,3.0,174.31,174.29,27.66479]
[1641055076814,27.66479,174.38,174.29,27.66479]
[1641055077016,3.0,174.32,174.29,27.66479]
[1641055077214,3.0,174.3,174.29,27.66479]
[1641055077414,3.0,174.32,174.29,27.66479]
[1641055077614,3.0,174.3,174.29,27.66479]
[1641055077817,3.0,174.37,174.24,5.161]
[1641055078016,3.0,174.37,174.2,30.4368]
[1641055078217,3.0,174.3,174.2,30.4368]
[1641055078417,3.0,174.37,174.2,30.4368]
[1641055078718,3.0,174.33,174.2,30.4368]
[1641055078916,3.0,174.37,174.29,27.66479]
[1641055079317,3.0,174.37,174.26,27.66479]
[1641055079518,3.0,174.32,174.26,27.66479]
[1641055079818,3.0,174.32,174.3,1.61189735]
[1641055080219,12.22379188,174.35,174.3,1.61189735]
[1641055080521,12.22379188,174.35,174.3,6.31089735]
[1641055080719,2.46243604,174.31,174.3,4.699]
[1641055081018,2.46243604,174.31,174.3,32.36379]
[1641055081919,3.0,174.36,174.3,46.19947923]
[1641055082320,3.0,174.35,174.3,46.19947923]
[1641055082520,3.0,174.34,174.3,46.19947923]
[1641055082721,2.46243604,174.37,174.3,46.19947923]
[1641055083123,3.0,174.35,174.3,46.19947923]
[1641055083322,3.0,174.34,174.3,46.19947923]
[1641055083822,3.0,174.31,174.3,13.83568923]
[1641055084225,3.0,174.31,174.27,7.0142394]
[1641055084226,3.0,174.31,174.27,12.22379188]
[1641055084423,3.0,174.32,174.27,12.22379188]
[1641055084424,3.0,174.28,174.27,12.22379188]
[1641055085627,3.0,174.28,174.24,12.22379188]
[1641055086427,6.417,174.31,174.24,12.22379188]
[1641055086626,18.64079188,174.31,174.23,19.2386378]
[1641055086828,3.0,174.27,174.23,19.2386378]
[1641055087026,3.0,174.27,174.25,27.66479]
[1641055087527,3.0,174.26,174.25,27.66479]
[1641055088529,15.22379188,174.32,174.25,27.66479]
[1641055088930,3.0,174.32,174.25,27.66479]
[1641055089529,3.0,174.26,174.25,20.89119]
[1641055089728,3.0,174.26,174.24,12.22379188]
[1641055090630,17.96134451,174.32,174.19,12.22379188]
[1641055090631,5.48995935,174.25,174.19,12.22379188]
[1641055091028,27.66479,174.23,174.19,12.22379188]
[1641055091729,27.66479,174.23,174.17,12.22379188]
[1641055092730,2.48995935,174.22,174.17,12.22379188]
[1641055095533,2.48995935,174.22,174.16,12.22379188]
[1641055096533,12.224439,174.25,174.17,12.22379188]
[1641055097835,14.71439835,174.25,174.21,4.07621339]
[1641055100237,17.71439835,174.25,174.21,4.07621339]
[1641055100840,14.71439835,174.25,174.21,4.07621339]
[1641055101138,14.71439835,174.24,174.2,4.07621339]
[1641055101639,12.224439,174.24,174.2,4.07621339]
[1641055103741,3.0,174.23,174.2,4.07621339]
[1641055103940,12.224439,174.24,174.2,4.07621339]
[1641055103941,15.224439,174.24,174.2,4.07621339]
[1641055104141,12.224439,174.24,174.2,4.07621339]
[1641055104941,14.71439835,174.25,174.21,4.07621339]
[1641055105740,2.48995935,174.27,174.21,20.7519175]
[1641055106743,2.48995935,174.27,174.25,4.0755034]
[1641055107347,2.48995935,174.27,174.24,4.0755034]
[1641055108146,2.48995935,174.27,174.25,4.0755034]
[1641055108949,14.71439835,174.27,174.23,4.0755034]
[1641055110349,0.45039835,174.27,174.24,3.0]
[1641055110548,9.35885897,174.3,174.24,3.0]
[1641055110949,32.60513749,174.31,174.24,3.0]
[1641055110950,3.0,174.35,174.27,4.0755034]
[1641055111153,32.60513749,174.36,174.28,27.66479]
[1641055111351,35.60513749,174.36,174.28,27.66479]
[1641055111653,32.60513749,174.36,174.28,27.66479]
[1641055111852,32.60513749,174.36,174.28,31.7402934]
[1641055113852,4.07439239,174.29,174.28,31.7402934]
[1641055116556,9.35885897,174.34,174.28,31.7402934]
[1641055117656,9.35885897,174.34,174.28,34.7402934]
[1641055117856,9.35885897,174.34,174.29,3.0]
[1641055118058,9.35885897,174.34,174.31,3.0]
[1641055118256,9.35885897,174.34,174.28,31.7402934]
[1641055118457,32.60513749,174.36,174.33,4.0755034]
[1641055118656,54.53109983,174.42,174.33,4.0755034]
[1641055118657,32.60513749,174.41,174.33,4.0755034]
[1641055119057,32.60513749,174.41,174.34,27.66479]
[1641055120057,5.73361619,174.42,174.35,4.0755034]
[1641055120658,8.73361619,174.42,174.35,4.0755034]
[1641055120856,5.73361619,174.42,174.35,4.0755034]
[1641055121057,33.39840619,174.42,174.35,4.0755034]
[1641055121359,66.00354368,174.42,174.34,31.7402934]
[1641055122358,66.00354368,174.42,174.34,4.0755034]
[1641055122758,3.25882056,174.41,174.34,4.0755034]
[1641055123358,3.25882056,174.41,174.32,4.0755034]
[1641055123558,35.86395805,174.41,174.32,4.0755034]
[1641055123757,32.60513749,174.41,174.32,4.0755034]
[1641055123960,32.60513749,174.41,174.33,4.0755034]
[1641055124860,66.00354368,174.42,174.34,4.0755034]
[1641055125061,31.1879,174.41,174.34,4.0755034]
[1641055125261,63.79303749,174.41,174.33,4.0755034]
[1641055125462,67.05185148,174.41,174.33,4.0755034]
[1641055125765,63.79303749,174.41,174.33,4.0755034]
[1641055126163,32.60513749,174.4,174.32,4.0755034]
[1641055126766,31.1879,174.41,174.33,4.0755034]
[1641055126767,63.79303749,174.41,174.33,4.0755034]
[1641055127068,27.66479,174.39,174.33,4.0755034]
[1641055128171,27.66479,174.39,174.32,4.0755034]
[1641055129071,32.44179,174.39,174.31,4.0755034]
[1641055129575,3.0,174.35,174.31,4.0755034]
[1641055130572,3.0,174.35,174.28,27.66479]
[1641055131173,27.66479,174.34,174.25,27.66479]
[1641055134681,27.66479,174.34,174.27,4.0755034]
[1641055135080,55.32958,174.34,174.27,4.0755034]
[1641055136483,87.93471749,174.34,174.26,4.0755034]
[1641055137483,90.93471749,174.34,174.26,4.0755034]
[1641055137683,87.93471749,174.34,174.26,4.0755034]
[1641055139086,8.77970455,174.33,174.27,4.0755034]
[1641055140688,12.22417014,174.32,174.28,4.0755034]
[1641055141088,12.22417014,174.32,174.3,27.66479]
[1641055141388,12.22417014,174.36,174.31,4.0755034]
[1641055142188,12.22417014,174.36,174.32,4.0755034]
[1641055142789,12.22417014,174.37,174.32,4.0755034]
[1641055143387,12.22417014,174.38,174.31,4.0755034]
[1641055145194,15.22417014,174.38,174.31,4.0755034]
[1641055145694,12.22417014,174.38,174.31,4.0755034]
[1641055146499,12.22417014,174.36,174.29,35.8529034]
[1641055146695,12.22417014,174.36,174.29,4.0755034]
[1641055147095,39.88896014,174.36,174.29,4.0755034]
[1641055147396,12.22417014,174.35,174.28,4.0755034]
[1641055148098,12.22417014,174.35,174.29,4.0755034]
[1641055150099,4.0663834,174.31,174.29,4.0755034]
[1641055150701,12.22417014,174.35,174.29,4.0755034]
[1641055150901,4.06615873,174.33,174.3,4.0755034]
[1641055151500,4.06615873,174.33,174.3,7.0755034]
[1641055151701,4.06565643,174.35,174.32,4.0755034]
[1641055152403,15.22417014,174.39,174.32,4.0755034]
[1641055152604,4.06525489,174.37,174.34,4.0755034]
[1641055153107,12.22417014,174.38,174.32,5.128]
[1641055154207,4.06545152,174.36,174.33,5.87350726]
[1641055154807,2.26744767,174.39,174.33,5.87350726]
[1641055155407,4.06532261,174.36,174.33,5.87350726]
[1641055156008,12.22417014,174.4,174.33,5.87350726]
[1641055156209,4.06516039,174.37,174.34,4.0755034]
[1641055156409,4.06516039,174.37,174.34,7.0755034]
[1641055156611,4.06516039,174.37,174.35,3.0]
[1641055157014,12.22417014,174.41,174.34,4.0755034]
[1641055157218,4.06485438,174.39,174.36,31.7402934]
[1641055157713,14.49129757,174.43,174.36,31.7402934]
[1641055157915,4.06495076,174.38,174.36,27.66479]
[1641055158315,4.06495076,174.38,174.35,4.0755034]
[1641055158516,12.22417014,174.42,174.35,4.0755034]
[1641055159318,4.06500411,174.38,174.35,4.0755034]
[1641055159823,14.49129757,174.42,174.35,4.0755034]
[1641055160623,12.22417014,174.4,174.36,4.0755034]
[1641055161423,38.70426608,174.42,174.36,4.0755034]
[1641055162122,12.21900929,174.4,174.35,4.0755034]
[1641055163129,12.21900929,174.39,174.35,4.0755034]
[1641055163327,3.0,174.38,174.35,1e-08]
[1641055163528,3.0,174.36,174.31,12.22417014]
[1641055163728,3.0,174.33,174.31,12.22417014]
[1641055163928,3.0,174.33,174.26,12.22417014]
[1641055164933,12.21900929,174.36,174.25,17.95680027]
[1641055165331,27.66479,174.34,174.25,17.95680027]
[1641055165532,39.88379929,174.34,174.25,5.73263013]
[1641055167338,39.88379929,174.34,174.24,39.88896014]
[1641055167540,39.88379929,174.34,174.24,27.66479]
[1641055168339,39.88379929,174.34,174.24,39.88896014]
[1641055168939,12.21900929,174.33,174.24,27.66479]
[1641055169239,12.21900929,174.33,174.27,27.66479]
[1641055169440,12.21900929,174.33,174.27,30.66479]
[1641055169639,12.21900929,174.34,174.27,27.66479]
[1641055169838,12.21900929,174.34,174.27,32.77979]
[1641055170441,12.21900929,174.37,174.27,32.77979]
[1641055171046,12.21900929,174.38,174.27,45.00396014]
[1641055171343,39.88379929,174.38,174.27,45.00396014]
[1641055172242,12.21900929,174.36,174.27,32.77979]
[1641055173443,12.21900929,174.36,174.28,19.60304669]
[1641055175144,12.21900929,174.35,174.27,45.00396014]
[1641055176047,12.21900929,174.36,174.28,19.60302465]
[1641055176747,12.21900929,174.36,174.28,12.22417014]
[1641055176946,12.21900929,174.35,174.27,32.77979]
[1641055177547,12.21900929,174.35,174.27,45.00396014]
[1641055178947,12.21900929,174.34,174.27,32.77979]
[1641055179548,12.21900929,174.35,174.27,32.77979]
[1641055180448,12.21900929,174.35,174.27,41.51176295]
[1641055180646,12.21900929,174.34,174.27,38.51176295]
[1641055181047,12.21900929,174.34,174.27,41.51176295]
[1641055181249,8.91748568,174.36,174.31,27.66479]
[1641055181447,12.21900929,174.38,174.31,27.66479]
[1641055182546,12.21900929,174.37,174.31,27.66479]
[1641055184050,39.88379929,174.38,174.31,27.66479]
[1641055185749,39.88379929,174.38,174.29,12.22417014]
[1641055185951,12.21900929,174.36,174.28,12.22417014]
[1641055186751,12.21900929,174.35,174.27,45.00396014]
[1641055187352,12.21900929,174.37,174.29,12.22417014]
[1641055190058,12.21900929,174.38,174.3,12.22417014]
[1641055191260,12.21900929,174.38,174.31,27.66479]
[1641055191659,12.21900929,174.39,174.31,27.66479]
[1641055192361,12.21900929,174.4,174.32,19.60292783]
[1641055195165,12.21900929,174.4,174.33,5.73000229]
[1641055195465,12.21900929,174.4,174.34,27.66479]
[1641055195665,8.91485637,174.43,174.34,27.66479]
[1641055195666,12.21900929,174.41,174.34,27.66479]
[1641055196265,12.21900929,174.4,174.34,27.66479]
[1641055199470,12.21900929,174.4,174.33,5.73000229]
[1641055201572,39.88379929,174.41,174.33,5.73000229]
[1641055203074,39.88379929,174.41,174.32,19.60257983]
[1641055204677,12.21900929,174.39,174.32,1.74870187]
[1641055205279,14.5432119,174.39,174.32,1.74870187]
[1641055207981,2.32420261,174.39,174.32,21.35131545]
[1641055209781,5.32420261,174.39,174.32,21.35131545]
[1641055210081,2.32420261,174.39,174.32,21.35131545]
[1641055210483,2.32420261,174.39,174.32,13.97287201]
[1641055210681,2.32420261,174.38,174.32,1.74870187]
[1641055211283,14.5432119,174.39,174.32,1.74870187]
[1641055211482,2.32420261,174.39,174.32,21.35131587]
[1641055212987,14.5432119,174.39,174.32,1.74870187]
[1641055214388,2.32420261,174.39,174.32,21.35131987]
[1641055218696,2.32420261,174.39,174.32,1.74870187]
[1641055219402,29.98899261,174.39,174.32,1.74870187]
[1641055219996,2.32420261,174.38,174.32,1.74870187]
[1641055220898,2.32420261,174.38,174.32,13.97287201]
[1641055221100,2.32420261,174.38,174.32,21.35132757]
[1641055221698,2.32420261,174.39,174.32,21.35132757]
[1641055223300,14.5432119,174.39,174.32,1.74870187]
[1641055224001,14.5432119,174.39,174.35,4.07288667]
[1641055225905,58.70609,174.4,174.35,4.07288667]
[1641055226107,27.66479,174.4,174.35,4.07288667]
[1641055226306,14.54284846,174.39,174.35,4.07288667]
[1641055226506,3.0,174.38,174.35,4.07288667]
[1641055226708,3.0,174.37,174.35,4.07288667]
[1641055226906,14.54284846,174.39,174.35,4.07288667]
[1641055227311,2.32416883,174.37,174.35,4.07288667]
[1641055228009,14.54287522,174.39,174.35,4.07288667]
[1641055228810,27.66479,174.4,174.35,4.07288667]
[1641055229513,3.0,174.36,174.32,1.74870187]
[1641055229711,3.0,174.34,174.25,27.66479]
[1641055231416,27.66479,174.33,174.25,27.66479]
[1641055233015,21.14626741,174.33,174.25,27.66479]
[1641055234217,21.14626741,174.33,174.26,7.3789648]
[1641055237921,21.14626741,174.33,174.25,27.66479]
[1641055239427,30.06879987,174.33,174.25,27.66479]
[1641055241030,30.06879987,174.33,174.21,27.66479]
[1641055241932,30.06879987,174.33,174.22,6.79011911]
[1641055242135,3.0,174.29,174.22,6.79011911]
[1641055243133,3.0,174.31,174.21,27.66479]
[1641055243536,3.0,174.3,174.21,27.66479]
[1641055243835,27.66479,174.29,174.21,27.66479]
[1641055245535,30.66479,174.29,174.21,27.66479]
[1641055245735,27.66479,174.29,174.21,27.66479]
[1641055247634,27.66479,174.26,174.19,31.8017]
[1641055247834,27.66479,174.26,174.16,33.40054382]
[1641055248338,27.66479,174.29,174.16,33.40054382]
[1641055248735,27.66479,174.29,174.17,6.79049957]
[1641055249436,9.51072363,174.28,174.17,6.79049957]
[1641055249640,9.51072363,174.28,174.2,27.66479]
[1641055251638,9.51072363,174.28,174.2,32.01579]
[1641055255841,27.66479,174.29,174.2,32.01579]
[1641055257548,9.51112232,174.28,174.2,32.01579]
[1641055257946,9.51112232,174.28,174.2,4.351]
[1641055258146,9.51112232,174.28,174.16,33.40054382]
[1641055259349,9.51112232,174.28,174.17,6.79051905]
[1641055259848,12.2259716,174.27,174.19,39.8907616]
[1641055261053,12.2259716,174.25,174.19,27.66479]
[1641055262352,12.2259716,174.25,174.17,12.2259716]
[1641055262957,12.2259716,174.25,174.16,45.62651542]
[1641055263156,12.2259716,174.24,174.16,45.62651542]
[1641055265760,12.2259716,174.25,174.17,19.01665198]
[1641055266160,12.2259716,174.24,174.19,27.66479]
[1641055266861,12.2259716,174.25,174.19,27.66479]
[1641055267462,12.2259716,174.24,174.19,27.66479]
[1641055269165,12.2259716,174.25,174.19,27.66479]
[1641055270366,12.2259716,174.25,174.2,1.52753939]
[1641055271368,12.2259716,174.24,174.2,1.52753939]
[1641055272768,12.2259716,174.25,174.2,1.52753939]
[1641055274572,32.60513749,174.29,174.23,27.66479]
[1641055274573,47.37950698,174.29,174.23,27.66479]
[1641055274773,14.77436949,174.29,174.23,27.66479]
[1641055275976,12.2259716,174.26,174.23,27.66479]
[1641055276474,12.2259716,174.26,174.21,31.2642]
[1641055276674,12.2259716,174.26,174.19,27.66479]
[1641055277877,12.2259716,174.27,174.2,1.52759636]
[1641055278479,12.2259716,174.27,174.22,27.66479]
[1641055279678,12.2259716,174.27,174.23,1.52759636]
[1641055280481,12.2259716,174.28,174.23,1.52759636]
[1641055284381,14.77436949,174.28,174.23,1.52759636]
[1641055289686,2.54839789,174.28,174.25,4.07492732]
[1641055290688,2.54839789,174.29,174.26,4.07492732]
[1641055291687,12.2259716,174.3,174.26,4.07492732]
[1641055292987,15.2259716,174.3,174.26,4.07492732]
[1641055293387,2.54839789,174.29,174.26,4.07492732]
[1641055294390,3.0,174.3,174.26,4.07492732]
[1641055295292,2.54693671,174.29,174.26,4.07492732]
[1641055295990,15.22385773,174.3,174.26,4.07492732]
[1641055296190,12.22385773,174.29,174.25,4.07492732]
[1641055296992,3.0,174.27,174.25,4.07492732]
[1641055297393,3.0,174.27,174.25,2.732e-05]
[1641055297592,3.0,174.27,174.22,27.66479]
[1641055297593,14.77441362,174.26,174.22,27.66479]
[1641055299100,12.22650591,174.25,174.22,27.66479]
[1641055299700,15.05611408,174.28,174.22,27.66479]
[1641055301001,2.54790771,174.27,174.22,27.66479]
[1641055301204,12.22678557,174.25,174.22,27.66479]
[1641055301603,15.05611408,174.28,174.22,27.66479]
[1641055302302,2.54790771,174.27,174.22,27.66479]
[1641055302503,12.22675826,174.25,174.22,27.66479]
[1641055303203,15.05611408,174.28,174.22,27.66479]
[1641055303404,15.05611408,174.28,174.22,33.34679]
[1641055303803,12.22672926,174.25,174.22,33.34679]
[1641055304504,15.05611408,174.28,174.22,33.34679]
[1641055305107,12.22672517,174.25,174.22,33.34679]
[1641055305709,2.54790771,174.27,174.22,33.34679]
[1641055306911,32.60513749,174.29,174.23,1.49102972]
[1641055306912,2.54790771,174.28,174.23,1.49102972]
[1641055307914,12.22431064,174.29,174.23,1.49102972]
[1641055308113,3.0,174.3,174.23,1.49102972]
[1641055308312,2.58337417,174.29,174.23,1.49102972]
[1641055308913,2.58337417,174.29,174.25,27.66479]
[1641055309114,3.0,174.3,174.25,27.66479]
[1641055309616,2.58337142,174.29,174.26,1.49102972]
[1641055310216,3.0,174.3,174.26,1.49102972]
[1641055310917,14.80772328,174.29,174.23,1.49102972]
[1641055312118,15.20500919,174.3,174.23,1.49102972]
[1641055312718,3.0,174.28,174.23,1.49102972]
[1641055313823,3.0,174.28,174.22,27.66479]
[1641055314022,2.57996666,174.27,174.22,27.66479]
[1641055314722,45.44370919,174.29,174.22,27.66479]
[1641055314723,45.44370919,174.29,174.23,1.4886842]
[1641055315524,2.57993015,174.28,174.23,1.4886842]
[1641055316424,14.78493934,174.28,174.23,1.4886842]
[1641055318625,14.78493934,174.29,174.23,1.4886842]
[1641055319026,17.78493934,174.29,174.23,1.4886842]
[1641055319327,14.78493934,174.29,174.23,1.4886842]
[1641055319527,14.80858042,174.28,174.23,1.4886842]
[1641055320228,2.58398305,174.29,174.23,1.4886842]
[1641055321029,12.22509914,174.28,174.23,1.4886842]
[1641055321728,12.22491875,174.29,174.23,1.4886842]
[1641055325030,12.22491875,174.29,174.28,27.66479]
[1641055325230,12.22491875,174.29,174.28,32.98679]
[1641055325630,14.8089018,174.32,174.28,32.98679]
[1641055326632,12.22491875,174.33,174.29,1.4886842]
[1641055327436,2.58398305,174.35,174.29,1.4886842]
[1641055328335,12.22178532,174.33,174.29,1.4886842]
[1641055329537,2.58398305,174.35,174.29,1.4886842]
[1641055330335,12.22121902,174.33,174.29,1.4886842]
[1641055331138,12.22106865,174.34,174.29,1.4886842]
[1641055334541,12.22106865,174.34,174.28,32.98679]
[1641055334740,2.58398305,174.35,174.28,32.98679]
[1641055341247,14.8050517,174.35,174.29,1.49117702]
[1641055342149,12.22106865,174.34,174.29,1.49117702]
[1641055342851,2.58398305,174.35,174.29,1.49117702]
[1641055344056,12.22078064,174.34,174.29,1.49117702]
[1641055344756,2.58398305,174.35,174.29,1.49117702]
[1641055345357,12.22093499,174.34,174.31,27.66479]
[1641055345858,12.22093499,174.34,174.28,27.66479]
[1641055346160,14.80491804,174.35,174.28,27.66479]
[1641055346660,2.58398305,174.33,174.29,1.4911536]
[1641055347262,12.22093499,174.34,174.29,1.4911536]
[1641055348762,2.58255893,174.35,174.29,1.4911536]
[1641055349366,12.22086413,174.34,174.29,1.4911536]
[1641055350063,2.58255893,174.35,174.29,1.4911536]
[1641055350966,12.22110257,174.34,174.29,1.4911536]
[1641055351467,2.58255893,174.35,174.29,1.4911536]
[1641055352066,12.22108469,174.34,174.29,1.4911536]
[1641055352668,2.58255893,174.35,174.29,1.4911536]
[1641055353472,12.22107896,174.34,174.29,1.4911536]
[1641055353672,12.22107896,174.34,174.31,27.66479]
[1641055353871,2.58255893,174.35,174.31,27.66479]
[1641055354472,12.22107714,174.34,174.31,27.66479]
[1641055355172,20.80432302,174.37,174.31,27.66479]
[1641055355975,12.22107297,174.34,174.31,27.66479]
[1641055356674,14.80193622,174.36,174.33,5.73000229]
[1641055356975,14.80193622,174.36,174.33,11.47900229]
[1641055357575,9.60176409,174.37,174.33,11.47900229]
[1641055357774,4.07227726,174.37,174.35,27.66479]
[1641055358774,12.21683179,174.41,174.35,27.66479]
[1641055358975,12.21683179,174.4,174.36,5.56319458]
[1641055359575,12.18283477,174.42,174.36,5.56319458]
[1641055359783,12.21610348,174.41,174.36,5.56319458]
[1641055360277,12.21610348,174.41,174.37,4.07207285]
[1641055361078,12.18283477,174.42,174.37,4.07207285]
[1641055362178,3.0,174.41,174.37,4.07207285]
[1641055362579,12.21596052,174.41,174.37,4.07207285]
[1641055363080,12.21596052,174.39,174.35,31.73686285]
[1641055363680,12.18283477,174.42,174.35,31.73686285]
[1641055364779,12.21747001,174.39,174.35,31.73686285]
[1641055365479,12.21718652,174.4,174.36,5.5633574]
[1641055367982,12.18283477,174.42,174.37,4.07207285]
[1641055367983,12.21718652,174.41,174.37,4.07207285]
[1641055370787,12.21718652,174.41,174.39,5.72803299]
[1641055370991,60.26992749,174.44,174.37,4.07207285]
[1641055371186,13.03242524,174.44,174.43,3.0]
[1641055371388,13.03242524,174.44,174.41,3.0]
[1641055371587,48.79748364,174.5,174.43,5.7249177]
[1641055371788,81.62331864,174.55,174.39,8.72803299]
[1641055371990,3.0,174.57,174.39,8.72803299]
[1641055372189,3.0,174.57,174.43,27.66479]
[1641055372388,27.66479,174.53,174.43,27.66479]
[1641055372591,32.208,174.52,174.49,4.07043099]
[1641055372789,27.66479,174.53,174.49,4.07043099]
[1641055373390,27.66479,174.53,174.44,4.07043099]
[1641055375991,27.66479,174.53,174.43,31.73522099]
[1641055376693,3.0,174.52,174.43,31.73522099]
[1641055377493,12.34698074,174.54,174.43,34.73522099]
[1641055377693,4.01243232,174.54,174.43,30.66479]
[1641055377893,4.01243232,174.54,174.43,27.66479]
[1641055378293,3.0,174.52,174.43,27.66479]
[1641055378995,27.66479,174.54,174.43,27.66479]
[1641055379393,3.0,174.55,174.47,5.72540937]
[1641055379894,8.74,174.58,174.48,3.0]
[1641055380094,8.74,174.58,174.47,5.72540937]
[1641055380295,8.74,174.58,174.46,3.0]
[1641055380494,27.66479,174.55,174.46,3.0]
[1641055380694,32.6244,174.54,174.46,3.0]
[1641055380894,32.6244,174.54,174.48,3.0]
[1641055381095,32.6244,174.54,174.43,34.73522099]
[1641055381298,32.6244,174.54,174.49,3.0]
[1641055381898,32.6244,174.54,174.46,3.0]
[1641055382100,32.6244,174.54,174.48,3.0]
[1641055382800,32.6244,174.54,174.49,3.0]